bitfinex/quotes_ETHUSD_20250702
["timestamp","ask_amount","ask_price","bid_price","bid_amount"]
[1751488059693,0.37070246,2595.1,2595.0,4.06556454]
[1751488060292,0.37070246,2595.1,2595.0,15.43676454]
[1751488060293,0.01,2595.1,2595.0,15.43676454]
[1751488062264,0.01,2595.1,2595.0,23.42576454]
[1751488063294,0.01,2595.1,2595.0,15.43676454]
[1751488063597,0.01,2595.1,2595.0,23.42476454]
[1751488066606,0.01,2595.1,2595.0,23.42276454]
[1751488066903,0.01,2595.1,2595.0,22.05156454]
[1751488067598,0.01,2595.1,2595.0,18.198]
[1751488067795,0.01,2595.1,2595.0,10.212]
[1751488068101,0.01,2595.1,2595.0,0.212]
[1751488068264,0.37035448,2595.1,2595.0,0.212]
[1751488068764,0.37035448,2595.1,2595.0,0.02]
[1751488075881,0.37073304,2595.1,2595.0,1.3904]
[1751488076102,0.01,2595.1,2595.0,5.43596454]
[1751488077284,0.01,2595.1,2595.0,15.43596454]
[1751488077898,0.01,2595.1,2595.0,23.41796454]
[1751488089612,1.07684941,2595.5,2595.3,3.8531092]
[1751488089814,0.5931921,2595.5,2595.3,3.8531092]
[1751488090113,0.5931921,2595.5,2595.3,4.0451092]
[1751488090279,0.5931921,2595.5,2595.4,3.85297064]
[1751488091113,0.5931921,2595.5,2595.4,4.04497064]
[1751488091606,0.5931921,2595.5,2595.4,5.40117064]
[1751488092905,0.5931921,2595.5,2595.4,15.40117064]
[1751488093490,1.981,2596.0,2595.6,3.85257013]
[1751488093698,1.981,2596.0,2595.7,3.85252194]
[1751488093905,1.981,2596.0,2595.7,4.04452194]
[1751488094291,1.981,2596.0,2595.7,0.192]
[1751488094613,1.4675,2596.1,2595.7,0.192]
[1751488094816,0.01,2596.2,2596.1,13.85193174]
[1751488095919,0.01,2596.2,2596.1,21.82593174]
[1751488096707,0.01,2596.2,2596.1,13.85193174]
[1751488097029,0.01,2596.2,2596.1,21.82493174]
[1751488099730,0.01,2596.2,2596.1,23.25403174]
[1751488106541,0.01,2596.4,2596.1,23.25403174]
[1751488106542,15.06959362,2601.3,2598.7,3.84807788]
[1751488106704,3.8284901,2600.8,2599.6,30.0]
[1751488106909,0.2161431,2602.4,2601.1,20.857565]
[1751488107214,0.35848459,2602.3,2601.4,0.55]
[1751488107425,0.2161431,2602.4,2601.5,3.84393619]
[1751488107426,0.30848459,2602.2,2601.5,3.84393619]
[1751488107637,0.30848459,2602.2,2601.0,10.0255]
[1751488107638,0.2161431,2602.4,2601.6,8.674]
[1751488108010,0.2161431,2602.4,2602.1,3.84304855]
[1751488108213,0.2161431,2602.4,2602.2,17.00077203]
[1751488108397,0.2161431,2602.4,2602.3,3.84275448]
[1751488108601,0.2161431,2602.4,2602.2,3.84283512]
[1751488108840,0.2161431,2602.4,2602.2,8.679]
[1751488109023,0.2161431,2602.4,2601.9,1.13383044]
[1751488109212,0.2161431,2602.4,2602.0,2.02792877]
[1751488109397,0.2161431,2602.4,2602.1,0.89409833]
[1751488109597,0.2161431,2602.4,2602.2,2.02792877]
[1751488109825,0.2161431,2602.4,2602.3,1.24256853]
[1751488110038,0.2161431,2602.4,2602.3,2.40587225]
[1751488110330,0.2161431,2602.4,2602.3,0.89409833]
[1751488110502,0.2161431,2602.4,2602.3,2.37871232]
[1751488110706,0.2161431,2602.4,2602.3,0.89409833]
[1751488111138,0.2261431,2602.4,2602.3,0.89409833]
[1751488111310,0.2261431,2602.4,2602.3,2.37871232]
[1751488111516,0.2261431,2602.4,2602.3,0.89409833]
[1751488111835,1.6883431,2602.4,2602.3,0.89409833]
[1751488112034,4.1489373,2602.4,2602.3,0.89409833]
[1751488112238,14.1489373,2602.4,2602.3,0.89409833]
[1751488112409,14.6989373,2602.4,2602.3,0.89409833]
[1751488112604,20.80054412,2602.4,2602.3,0.89409833]
[1751488112816,0.55,2602.1,2602.0,1.11103504]
[1751488113018,0.55,2601.7,2601.2,3.02354784]
[1751488113336,0.55,2601.7,2600.9,3.81278926]
[1751488113337,11.01062848,2601.7,2601.4,3.02354784]
[1751488113536,0.19501,2601.6,2601.1,3.81278926]
[1751488113741,1.4001,2601.8,2601.3,3.81278926]
[1751488114034,1.4001,2601.8,2601.5,3.84393343]
[1751488114216,1.4001,2601.8,2601.5,3.84381177]
[1751488114414,2.259,2602.1,2601.5,10.0]
[1751488114604,0.36591,2602.1,2601.8,3.84334974]
[1751488114804,0.36591,2602.1,2601.4,11.59587139]
[1751488114805,0.2261431,2602.4,2601.6,10.0]
[1751488115043,0.2261431,2602.4,2602.3,3.84275448]
[1751488115341,0.2261431,2602.4,2602.3,13.84275448]
[1751488115516,6.932,2603.9,2602.3,13.84275448]
[1751488115517,42.91759889,2604.9,2602.6,0.55]
[1751488115837,12.91759889,2604.1,2603.2,3.84131299]
[1751488116042,1.4001,2604.4,2603.3,12.49925631]
[1751488116208,1.4001,2604.4,2603.4,8.656]
[1751488116412,1.4001,2604.4,2603.5,3.84089165]
[1751488116613,1.4001,2604.4,2603.6,8.652]
[1751488117137,1.14001,2604.3,2603.6,8.652]
[1751488117338,12.91759889,2604.3,2602.8,10.0]
[1751488117525,12.91759889,2604.3,2603.2,10.0]
[1751488117704,0.55,2604.2,2603.3,8.645]
[1751488117903,1.34675989,2604.1,2603.3,8.645]
[1751488118137,5.23976163,2604.4,2603.3,8.645]
[1751488118339,1.4001,2604.4,2603.6,3.84072958]
[1751488118638,1.4001,2604.4,2603.1,3.8415334]
[1751488118639,1.4001,2604.4,2603.7,12.48165045]
[1751488119040,1.4001,2604.4,2603.9,3.8402598]
[1751488119240,1.4001,2604.4,2604.0,3.84021686]
[1751488119416,1.4001,2604.4,2604.1,8.63]
[1751488119819,1.4001,2604.4,2604.1,12.47006932]
[1751488120016,1.4001,2604.4,2604.1,8.63]
[1751488120423,1.4001,2604.4,2604.1,12.4700671]
[1751488120840,1.4001,2604.4,2604.1,8.63]
[1751488121040,1.4001,2604.4,2603.4,1.3424]
[1751488121208,1.4001,2604.4,2603.9,3.84031538]
[1751488121412,1.4001,2604.4,2604.0,12.45724534]
[1751488121746,1.6548431,2605.0,2604.6,3.83925999]
[1751488122043,1.6548431,2605.0,2604.2,3.83995084]
[1751488122044,40.0,2605.6,2604.3,10.0]
[1751488122227,3.83891896,2604.9,2604.8,7.64517441]
[1751488122422,4.38891896,2604.9,2604.8,7.64517441]
[1751488123041,3.83897116,2604.9,2604.6,7.64517441]
[1751488123219,2.806,2605.3,2604.6,7.64517441]
[1751488123220,0.38389712,2604.8,2604.6,7.64517441]
[1751488123540,10.0,2605.1,2604.6,7.64517441]
[1751488123541,3.83877159,2605.0,2604.6,7.64517441]
[1751488123838,2.256,2605.3,2604.7,7.64517441]
[1751488124040,3.83862423,2605.1,2604.7,7.64517441]
[1751488124240,0.2256,2605.2,2604.7,7.64517441]
[1751488124743,0.2256,2605.2,2604.9,7.64517441]
[1751488124955,10.2256,2605.2,2605.0,0.8771802]
[1751488125144,1.354,2605.1,2604.9,7.64517441]
[1751488125336,1.10796,2605.0,2604.4,18.53915119]
[1751488125513,1.10796,2605.0,2604.5,0.87672231]
[1751488125714,1.10796,2605.0,2604.6,0.87672231]
[1751488125944,4.94681777,2605.0,2604.7,0.87672231]
[1751488126240,0.63008178,2604.9,2604.7,0.87672231]
[1751488126440,0.63008178,2604.9,2604.6,8.588]
[1751488126645,0.1912,2604.7,2604.6,8.588]
[1751488128219,0.1912,2604.7,2604.6,9.46521331]
[1751488128416,0.1912,2604.7,2604.6,9.44421331]
[1751488128753,3.83893713,2604.9,2604.6,9.44421331]
[1751488129073,0.38389371,2604.8,2604.7,0.87721331]
[1751488129847,0.38389371,2604.8,2604.7,9.43521331]
[1751488130023,3.83898109,2604.9,2604.7,9.43521331]
[1751488130226,3.83898109,2604.9,2604.8,0.87721331]
[1751488130850,3.8388698,2605.0,2604.8,0.87721331]
[1751488131049,3.8388698,2605.0,2604.9,0.87721331]
[1751488131251,4.62918491,2605.0,2604.9,0.87721331]
[1751488131627,4.62918491,2605.0,2604.9,9.42221331]
[1751488133050,4.62918491,2605.0,2604.9,9.41121331]
[1751488133249,13.8389003,2605.0,2604.9,0.87721331]
[1751488133555,3.8389003,2605.0,2604.9,0.87721331]
[1751488133859,4.77234846,2605.0,2604.9,0.87721331]
[1751488134059,0.93344816,2605.0,2604.9,0.87721331]
[1751488134246,3.83803492,2605.5,2604.9,0.87721331]
[1751488134555,0.1912,2605.1,2605.0,13.09880671]
[1751488134978,0.1912,2605.1,2605.0,9.40321331]
[1751488135534,0.1912,2605.5,2605.0,11.84541331]
[1751488135861,0.1912,2605.5,2605.4,5.1908154]
[1751488136059,0.1912,2605.5,2605.4,14.58802871]
[1751488136278,3.83795319,2605.6,2605.4,14.60535752]
[1751488136436,4.79665139,2605.6,2605.5,0.89454212]
[1751488136630,4.60545139,2605.6,2605.5,9.41054212]
[1751488137043,0.76756377,2605.6,2605.5,9.41054212]
[1751488137241,4.52972757,2606.2,2605.5,0.89454212]
[1751488137439,0.1912,2606.1,2605.7,7.4585276]
[1751488137650,0.1912,2606.0,2605.8,0.89454212]
[1751488137838,4.02849854,2606.0,2605.9,0.89454212]
[1751488138049,4.62385148,2606.0,2605.9,9.41154212]
[1751488138251,0.78655294,2606.0,2605.9,9.41154212]
[1751488138435,0.1912,2606.1,2605.9,16.86880583]
[1751488138642,3.83721728,2606.1,2606.0,0.89454212]
[1751488138843,13.83729854,2606.0,2605.9,7.45726371]
[1751488139054,43.83729854,2606.0,2605.9,5.2234828]
[1751488139361,47.85062278,2606.0,2605.9,3.7319573]
[1751488139542,14.02864579,2605.9,2605.8,3.7319573]
[1751488139747,3.83759306,2605.8,2605.7,3.7319573]
[1751488139947,6.39015922,2605.8,2605.7,3.7319573]
[1751488140265,1.7786004,2605.8,2605.6,8.508]
[1751488140429,4.02894033,2605.7,2605.6,4.28079323]
[1751488140630,3.83803492,2605.5,2605.4,5.2234828]
[1751488140832,4.19348549,2605.5,2605.4,4.25315066]
[1751488141027,4.9966228,2605.5,2605.4,0.63123624]
[1751488141262,4.64117223,2605.5,2605.4,0.63123624]
[1751488141441,4.64117223,2605.5,2605.4,12.23523253]
[1751488141636,4.64124877,2605.5,2605.0,0.1912]
[1751488141864,0.1912,2605.4,2605.0,0.1912]
[1751488142034,1.6744285,2605.4,2605.1,8.499]
[1751488142235,1.6744285,2605.4,2605.2,8.497]
[1751488142436,0.1912,2605.4,2605.2,8.497]
[1751488142764,0.1912,2605.4,2605.0,0.1912]
[1751488142765,0.1912,2605.4,2605.3,8.494]
[1751488143352,3.83732809,2606.0,2605.3,8.494]
[1751488143554,0.1912,2605.4,2604.6,1.5148]
[1751488143760,3.83872702,2605.1,2604.8,2.232]
[1751488143971,4.02975444,2605.2,2604.8,2.232]
[1751488144267,0.1912,2605.2,2604.8,2.232]
[1751488144435,3.8381883,2605.4,2605.1,3.74276484]
[1751488144634,3.83785703,2605.7,2605.1,3.74276484]
[1751488144635,3.83812705,2605.5,2605.2,0.35120434]
[1751488144836,3.83812705,2605.5,2605.1,3.74276484]
[1751488144837,3.83805939,2605.5,2605.3,0.70242151]
[1751488145037,4.22174429,2605.6,2605.4,0.70242151]
[1751488145238,3.83795859,2605.6,2605.5,0.70242151]
[1751488145467,3.83795859,2605.6,2605.5,3.69865162]
[1751488145968,3.83795859,2605.6,2605.5,3.34722208]
[1751488146167,3.83795859,2605.6,2605.5,0.35120434]
[1751488146382,4.02935112,2605.5,2605.2,3.74276484]
[1751488146593,4.60552968,2605.6,2605.3,0.35164139]
[1751488146811,3.83803492,2605.5,2605.4,0.35164139]
[1751488146969,0.35711731,2605.5,2605.4,0.35164139]
[1751488147295,0.1912,2605.4,2605.3,3.74276484]
[1751488147498,0.54831731,2605.4,2605.3,3.74276484]
[1751488147959,0.54831731,2605.4,2605.2,10.0]
[1751488148168,0.35711731,2605.3,2605.2,10.0]
[1751488149057,0.35711731,2605.3,2605.2,8.461]
[1751488149258,0.35711731,2605.3,2605.2,9.9926]
[1751488149457,1.5751,2606.1,2605.2,0.1912]
[1751488149458,3.83799794,2605.6,2605.2,0.1912]
[1751488149707,4.59853454,2605.5,2605.4,5.26179521]
[1751488149872,6.11453454,2605.5,2605.4,5.26179521]
[1751488150198,6.11453454,2605.5,2605.4,3.76000216]
[1751488150361,3.8384356,2605.3,2605.1,3.76000216]
[1751488150705,0.35751421,2605.2,2605.1,3.76000216]
[1751488150865,0.35751421,2605.2,2605.1,4.66323716]
[1751488150866,0.54871421,2605.2,2605.1,4.66323716]
[1751488151186,0.54871421,2605.2,2605.1,0.903235]
[1751488151569,0.54871421,2605.2,2605.1,3.91625859]
[1751488151996,1.46657899,2605.2,2604.9,8.451]
[1751488152205,1.27537899,2605.1,2604.9,8.451]
[1751488152403,1.27537899,2605.0,2604.9,8.451]
[1751488154305,1.27537899,2605.0,2604.9,12.28991896]
[1751488154495,3.05954927,2605.4,2605.2,3.83845637]
[1751488154692,3.25074927,2605.5,2605.3,8.427]
[1751488154883,3.05954927,2605.6,2605.3,8.427]
[1751488155199,3.25074927,2605.7,2605.3,8.427]
[1751488155400,0.1912,2605.7,2605.3,12.26531403]
[1751488155600,3.05954927,2606.0,2605.3,12.26531403]
[1751488155601,0.1912,2605.9,2605.5,0.1912]
[1751488155800,0.1912,2605.9,2605.7,1.645]
[1751488156098,0.1912,2605.9,2605.7,5.23300073]
[1751488156297,3.05954927,2606.3,2605.8,3.83750669]
[1751488156499,3.05954927,2606.4,2605.8,0.1912]
[1751488156997,3.05954927,2606.4,2605.8,8.6102]
[1751488157300,3.05954927,2606.4,2605.9,10.0]
[1751488157549,0.1912,2606.5,2605.9,10.0]
[1751488157671,0.1912,2606.5,2605.8,0.1912]
[1751488157873,4.02893005,2605.8,2604.1,9.77684495]
[1751488158106,10.0002,2605.7,2605.0,0.1912]
[1751488158305,10.0002,2605.7,2603.8,0.3100683]
[1751488158306,0.1912,2605.0,2604.1,3.84002195]
[1751488158477,0.1912,2604.9,2604.5,0.2112]
[1751488158679,0.1912,2604.7,2604.5,0.02]
[1751488161336,0.1912,2605.0,2604.5,0.2112]
[1751488161920,0.90014362,2605.0,2604.5,0.2112]
[1751488164223,0.1912,2605.0,2604.5,0.2112]
[1751488164375,3.05954927,2605.4,2604.7,10.0]
[1751488164582,3.25074927,2605.5,2605.0,1.5521]
[1751488164821,3.83805248,2605.5,2605.0,1.5521]
[1751488165149,0.1912,2605.3,2604.8,0.1912]
[1751488165347,0.97795728,2605.3,2604.8,0.1912]
[1751488165917,0.78675728,2605.3,2604.7,1.5521]
[1751488166117,0.1912,2605.2,2604.7,1.7433]
[1751488166525,0.91885643,2605.1,2604.7,1.7433]
[1751488166741,0.91885643,2605.0,2604.7,1.7433]
[1751488166919,0.91885643,2604.9,2604.7,1.7433]
[1751488167124,0.1912,2605.2,2604.7,1.7433]
[1751488167312,0.91883477,2605.1,2604.7,1.7433]
[1751488167512,0.91883477,2605.0,2604.7,1.7433]
[1751488167754,0.91883477,2604.9,2604.7,1.7433]
[1751488167913,0.59416066,2605.2,2604.7,11.7433]
[1751488168104,0.91883466,2605.1,2604.7,11.7433]
[1751488168317,0.91883466,2605.0,2604.7,1.7433]
[1751488168534,0.91915512,2604.9,2604.7,1.7433]
[1751488168727,4.02970758,2605.2,2604.7,1.7433]
[1751488168931,1.322127,2605.1,2604.7,1.7433]
[1751488169149,0.91915624,2605.0,2604.7,1.7433]
[1751488169443,0.40297076,2605.1,2604.7,1.7433]
[1751488169643,1.32208406,2605.1,2604.7,1.7433]
[1751488169831,0.40297076,2605.1,2604.7,1.7433]
[1751488170142,1.322143,2605.1,2604.7,1.7433]
[1751488170448,0.40297076,2605.1,2604.7,1.7433]
[1751488170645,1.32213133,2605.1,2604.7,1.7433]
[1751488170831,0.40297076,2605.1,2604.7,1.7433]
[1751488171037,1.322133,2605.1,2604.7,1.7433]
[1751488171344,1.32219329,2605.1,2604.7,1.7433]
[1751488172433,4.75791163,2605.1,2604.7,1.7433]
[1751488172638,0.91922253,2605.1,2604.7,1.7433]
[1751488173157,4.9489071,2605.2,2604.7,1.7433]
[1751488173319,4.02968457,2605.2,2604.7,1.7433]
[1751488173647,0.91922253,2605.1,2604.7,1.7433]
[1751488173818,0.49489071,2605.0,2604.7,1.7433]
[1751488178678,0.49489071,2605.0,2604.7,0.1912]
[1751488179471,3.83893459,2604.9,2604.6,0.02]
[1751488179769,0.1912,2604.8,2604.6,0.02]
[1751488179952,4.03028249,2604.8,2604.6,0.02]
[1751488180160,1.61872319,2604.7,2604.6,0.02]
[1751488180694,5.45793691,2604.7,2604.6,0.02]
[1751488181484,6.37715695,2604.7,2604.6,0.02]
[1751488182066,5.45793691,2604.7,2604.6,0.02]
[1751488182882,6.37705159,2604.7,2604.6,0.02]
[1751488184065,16.87105159,2604.7,2604.6,0.02]
[1751488184270,6.37705159,2604.7,2604.6,0.02]
[1751488184468,16.86905159,2604.7,2604.6,0.02]
[1751488184884,44.48596113,2604.6,2604.5,0.02]
[1751488185186,49.36383513,2604.6,2604.5,0.02]
[1751488185375,19.85283513,2604.6,2604.5,0.02]
[1751488186092,0.91911468,2604.6,2604.5,0.02]
[1751488186392,3.10811468,2605.2,2604.5,0.02]
[1751488186689,3.83869172,2605.1,2604.5,0.02]
[1751488187201,3.83880276,2605.0,2604.5,0.02]
[1751488187488,0.47579174,2604.9,2604.5,0.02]
[1751488188501,6.02755888,2605.2,2604.5,0.02]
[1751488188701,6.94667356,2605.2,2604.5,0.02]
[1751488188904,0.91911468,2605.1,2604.5,0.02]
[1751488189291,2.189,2605.2,2604.6,0.9996]
[1751488189491,6.9465922,2605.2,2604.6,0.9996]
[1751488189693,4.53328474,2605.1,2604.6,0.9996]
[1751488189921,5.45239942,2605.1,2604.6,0.9996]
[1751488190516,0.69465922,2605.1,2604.6,0.9996]
[1751488191108,6.02755612,2605.2,2604.6,0.9996]
[1751488191307,3.10811468,2605.2,2604.6,0.9996]
[1751488191507,6.02747847,2605.2,2604.6,0.9996]
[1751488191708,6.94659315,2605.2,2604.6,0.9996]
[1751488191907,6.02747847,2605.2,2604.6,0.9996]
[1751488192131,6.94659315,2605.2,2604.6,0.9996]
[1751488192428,6.02747847,2605.2,2604.6,0.9996]
[1751488192729,3.8386285,2605.1,2604.6,0.9996]
[1751488192934,4.917122,2605.1,2604.6,0.9996]
[1751488193132,3.83879989,2605.0,2604.6,0.9996]
[1751488193830,0.1912,2604.7,2604.6,0.9996]
[1751488194034,0.1912,2604.7,2604.5,0.02]
[1751488194231,5.98136113,2604.6,2604.5,0.02]
[1751488194451,6.90025806,2604.6,2604.5,0.02]
[1751488197100,3.06089693,2604.6,2604.5,0.02]
[1751488197301,2.142,2604.6,2604.5,0.02]
[1751488199726,5.98136113,2604.6,2604.5,0.02]
[1751488200032,7.05530018,2604.6,2604.5,0.02]
[1751488200238,15.32630018,2604.6,2604.5,0.02]
[1751488200438,12.40583598,2604.6,2604.5,0.02]
[1751488200626,16.24519711,2604.6,2604.5,0.02]
[1751488201028,12.40583598,2604.6,2604.5,0.02]
[1751488201206,0.91889693,2604.6,2604.5,0.9868]
[1751488201405,0.1912,2604.7,2604.5,0.9868]
[1751488205107,4.75800947,2604.8,2604.5,0.9868]
[1751488205326,0.1912,2604.6,2604.5,0.9868]
[1751488206125,0.1912,2605.0,2604.5,4.82626264]
[1751488206360,0.2012,2605.2,2604.7,3.83914521]
[1751488206549,0.2012,2605.2,2604.8,0.1912]
[1751488207738,0.2012,2605.2,2604.6,0.9373]
[1751488207952,0.2012,2605.2,2604.6,1.1285]
[1751488208158,1.90506462,2605.2,2604.6,1.1285]
[1751488208928,1.71386462,2605.2,2604.6,0.9373]
[1751488209129,0.1912,2604.8,2604.6,0.9373]
[1751488210630,1.71386462,2605.2,2604.6,0.9373]
[1751488210831,3.84852813,2605.2,2604.6,0.9373]
[1751488211060,0.1912,2605.0,2604.6,0.9373]
[1751488211636,4.03006868,2605.0,2604.6,0.9373]
[1751488211861,3.83886868,2605.0,2604.6,0.9373]
[1751488212035,0.1912,2604.7,2604.6,0.9373]
[1751488213035,3.83936113,2604.6,2604.5,0.02]
[1751488213251,12.46441724,2604.6,2604.5,0.02]
[1751488213434,13.38353956,2604.6,2604.5,0.02]
[1751488214944,3.84039325,2603.9,2603.8,0.02]
[1751488215144,14.75059325,2603.9,2603.8,0.02]
[1751488215356,17.52880166,2603.9,2603.8,0.02]
[1751488217665,47.52880166,2603.9,2603.8,0.02]
[1751488217863,57.52880166,2603.9,2603.8,0.02]
[1751488218178,3.84083576,2603.6,2603.5,0.02]
[1751488218351,54.35780978,2603.6,2603.5,0.02]
[1751488218554,44.39418329,2603.5,2603.4,0.02]
[1751488218741,45.31330561,2603.5,2603.4,0.02]
[1751488219383,15.31330561,2603.5,2603.4,0.02]
[1751488219585,9.227,2603.6,2603.4,0.02]
[1751488219781,0.192,2603.5,2603.4,0.02]
[1751488223006,1.85908609,2603.9,2603.5,3.84097177]
[1751488223007,0.192,2603.9,2603.5,3.84097177]
[1751488223153,0.192,2603.9,2603.6,10.0]
[1751488223850,2.09,2604.3,2603.5,13.84092618]
[1751488224053,0.1912,2604.2,2603.8,0.192]
[1751488224382,0.1912,2604.4,2604.0,0.192]
[1751488225610,0.60425611,2604.6,2604.1,0.192]
[1751488226313,0.88152561,2604.5,2604.1,0.192]
[1751488226678,4.7210791,2604.5,2603.9,1.0116]
[1751488226897,0.1912,2604.4,2604.0,0.192]
[1751488229218,0.192,2604.2,2603.9,1.0116]
[1751488229582,3.8400983,2604.1,2603.7,0.192]
[1751488229788,0.5403,2604.4,2603.6,1.0261]
[1751488229789,0.97920984,2604.0,2603.6,1.0261]
[1751488229987,0.192,2604.0,2603.6,1.0261]
[1751488230797,0.192,2604.0,2603.8,0.02]
[1751488232613,4.03225066,2604.0,2603.8,0.02]
[1751488232786,3.84039325,2603.9,2603.8,0.02]
[1751488232988,4.62765764,2603.9,2603.8,0.02]
[1751488234288,5.16795764,2603.9,2603.8,0.02]
[1751488234728,15.43395764,2603.9,2603.8,0.02]
[1751488236726,15.43495764,2603.9,2603.8,0.02]
[1751488237392,16.3514788,2603.9,2603.8,0.02]
[1751488238024,6.0844788,2603.9,2603.8,0.02]
[1751488238225,3.84098329,2603.5,2603.4,0.02]
[1751488238396,12.54528329,2603.5,2603.4,0.02]
[1751488238728,23.4621489,2603.5,2603.4,0.02]
[1751488244763,0.91686561,2603.5,2603.4,0.02]
[1751488244965,0.192,2603.6,2603.4,0.02]
[1751488245255,0.192,2603.8,2603.4,3.86112404]
[1751488245825,0.89152561,2604.5,2603.6,1.0236]
[1751488246139,0.192,2604.2,2603.7,0.192]
[1751488246650,0.192,2604.2,2603.8,0.9741]
[1751488246816,0.192,2604.2,2604.0,3.840233]
[1751488247448,0.192,2604.2,2604.1,13.8400983]
[1751488247746,0.01,2604.5,2604.4,10.0]
[1751488247966,0.01,2604.5,2604.4,14.81375596]
[1751488248332,0.01,2604.5,2604.4,5.00495596]
[1751488248771,0.01,2604.5,2604.4,1.1653]
[1751488248974,0.01,2604.5,2604.4,0.9741]
[1751488249146,0.1912,2604.4,2603.9,1.1661]
[1751488249653,0.01,2604.5,2603.9,0.9741]
[1751488249856,0.192,2604.1,2603.9,0.9741]
[1751488250056,0.192,2604.1,2603.7,0.192]
[1751488250267,3.84034035,2604.0,2603.6,0.9741]
[1751488250472,0.192,2603.9,2603.6,0.9741]
[1751488250678,2.46493856,2604.5,2603.8,3.84051868]
[1751488250963,0.01,2604.5,2604.2,4.81399847]
[1751488251173,0.01,2604.5,2604.3,0.1912]
[1751488254171,0.01,2604.5,2604.4,13.83965596]
[1751488254482,0.01,2604.5,2604.4,10.0]
[1751488254838,0.01,2604.5,2604.4,13.83965596]
[1751488255063,0.01,2604.5,2604.4,14.03085596]
[1751488255646,0.01,2604.6,2604.5,14.84340854]
[1751488256383,0.01,2604.6,2604.5,1.0039]
[1751488256748,0.01,2604.6,2604.5,11.0039]
[1751488260045,0.01,2604.6,2604.5,1.0039]
[1751488265696,3.83998664,2604.2,2603.5,0.9516]
[1751488265858,6.29209914,2604.1,2603.5,0.9516]
[1751488266065,4.03247984,2603.9,2603.4,0.212]
[1751488266259,0.192,2603.9,2603.4,0.212]
[1751488267906,0.192,2603.5,2603.4,0.02]
[1751488269702,6.63078329,2603.5,2603.4,0.02]
[1751488270568,2.26,2603.5,2603.4,0.02]
[1751488271477,6.10098329,2603.5,2603.4,0.02]
[1751488271677,2.26,2603.5,2603.4,0.02]
[1751488271878,3.25416537,2603.5,2603.4,0.02]
[1751488272202,7.09514866,2603.5,2603.4,0.02]
[1751488272404,15.20814866,2603.5,2603.4,0.02]
[1751488278081,15.73794866,2603.5,2603.4,0.02]
[1751488278805,25.73794866,2603.5,2603.4,0.02]
[1751488279223,26.65329789,2603.5,2603.4,0.02]
[1751488280376,25.73794866,2603.5,2603.4,0.02]
[1751488281409,1.71596537,2603.5,2603.4,0.02]
[1751488281643,14.17398329,2603.5,2603.4,0.02]
[1751488282621,14.70378329,2603.5,2603.4,0.02]
[1751488282921,24.70378329,2603.5,2603.4,0.02]
[1751488283116,24.91578329,2603.5,2603.4,1e-08]
[1751488283293,55.83015335,2603.5,2603.4,1e-08]
[1751488283492,59.84347759,2603.5,2603.4,1e-08]
[1751488286238,63.88947759,2603.5,2603.4,1e-08]
[1751488286625,3.84201629,2602.8,2602.7,0.02]
[1751488286825,13.98401629,2602.8,2602.7,0.02]
[1751488287125,15.76660752,2602.8,2602.7,0.02]
[1751488288319,16.29070752,2602.8,2602.7,0.02]
[1751488290638,7.66560752,2602.8,2602.7,0.02]
[1751488290818,2.041,2602.8,2602.7,0.02]
[1751488291019,10.143,2602.8,2602.7,0.02]
[1751488291225,13.98501629,2602.8,2602.7,0.02]
[1751488291802,10.143,2602.8,2602.7,0.02]
[1751488292005,13.98501629,2602.8,2602.7,0.02]
[1751488292206,15.76770601,2602.8,2602.7,0.02]
[1751488295524,16.6856411,2602.8,2602.7,0.02]
[1751488298259,12.84462481,2602.8,2602.7,0.02]
[1751488301022,11.06193509,2602.8,2602.7,0.02]
[1751488301463,14.90395138,2602.8,2602.7,0.02]
[1751488303021,15.42805138,2602.8,2602.7,0.02]
[1751488308559,15.42705138,2602.8,2602.7,0.02]
[1751488310553,15.42705138,2602.8,2602.3,0.02]
[1751488310554,4.36670682,2602.4,2602.3,0.02]
[1751488310861,24.08706129,2602.4,2602.3,0.02]
[1751488312374,37.51910587,2602.4,2602.3,0.02]
[1751488313465,67.51910587,2602.4,2602.3,0.02]
[1751488313667,3.84364069,2601.7,2601.6,0.02]
[1751488313834,15.28793985,2601.7,2601.6,0.02]
[1751488314541,11.44429916,2601.7,2601.6,0.02]
[1751488314730,0.91793509,2601.7,2601.6,0.02]
[1751488314932,8.101,2602.1,2601.7,0.987]
[1751488315239,9.01893509,2602.1,2601.7,0.987]
[1751488315446,2.041,2602.6,2601.8,3.84347152]
[1751488315634,9.02148874,2602.5,2601.9,0.987]
[1751488315835,9.02148874,2602.4,2602.0,0.987]
[1751488316047,8.101,2602.4,2602.0,0.987]
[1751488316752,0.92040272,2602.5,2602.0,0.987]
[1751488317056,8.101,2602.5,2602.0,0.987]
[1751488317254,9.02140272,2602.5,2602.0,0.987]
[1751488319363,9.234,2602.7,2602.1,1.0115]
[1751488319568,9.02043432,2602.6,2602.1,1.0115]
[1751488320244,9.02043432,2602.6,2602.1,4.85453455]
[1751488320645,0.192,2602.5,2602.1,1.0115]
[1751488321258,0.192,2602.5,2602.1,4.85452655]
[1751488321475,0.192,2602.5,2602.1,5.87854482]
[1751488322447,0.192,2602.5,2602.1,12.03551827]
[1751488323080,0.192,2602.5,2602.1,15.87854988]
[1751488323275,0.192,2602.5,2602.1,12.03551827]
[1751488324048,0.192,2602.5,2602.1,15.8785467]
[1751488324252,0.192,2602.5,2602.1,12.03551827]
[1751488324673,0.192,2602.5,2602.1,2.03551827]
[1751488324873,0.192,2602.5,2602.1,12.03551827]
[1751488325269,0.192,2602.5,2602.1,15.87856189]
[1751488325499,17.333,2602.7,2602.3,4.78235293]
[1751488325683,17.333,2602.7,2602.3,1.1316]
[1751488326289,0.192,2602.5,2602.3,0.9396]
[1751488327788,4.03452527,2602.5,2602.3,0.9396]
[1751488328007,0.92035056,2602.6,2601.7,10.0]